Workbook

Sheet Inputs
A1: Value of a social tenancy illustration
A2: Please click 'enable content' to use the calculator
A3: Name of Organisation | D3: Name
G4: Guidance on inputs
A5: Number of tenancies | D5: 0 | G5: This is the number of lettable properties available for let or currently being let, split into the units to which individual tenancy agreements would usually apply
A7: Geographic mix | C7: London | D7: 0 | G7: Housing stock % in the London area including greater London (any of the 13 Inner London boroughs and 10 Outer London boroughs)
C8: South East | D8: 0 | G8: Housing stock % in the following counties: Berkshire, Buckinghamshire, East Sussex, Hampshire, the Isle of Wight, Kent, Oxfordshire, Surrey and West Sussex
C9: South West | D9: 0 | G9: Housing stock % in the following counties: Bristol, Cornwall, Dorset, Devon, Gloucestershire,Somerset, and Wiltshire, as well as the Isles of Scilly
C10: East of England | D10: 0 | G10: Housing stock % in the following counties: Bedfordshire, Cambridgeshire, Essex, Hertfordshire, Norfolk and Suffolk
C11: Midlands | D11: 0 | G11: Housing stock % in the following regions: East Midlands (counties: Derbyshire, Leicestershire, Lincolnshire, Northamptonshire, Nottinghamshire and Rutland and West Midlands (counties: Herefordshire, Shropshire, Staffordshire, Warwickshire, West Midlands and Worcestershire)
C12: Yorkshire and the Humber | D12: 0 | G12: Housing stock % in the following: South Yorkshire, West Yorkshire, East Riding of Yorkshire, Hull, North Yorkshire and the City of York, as well as North Lincolnshire and North East Lincolnshire
C13: North East | D13: 0 | G13: Housing stock % in the following: Northumberland, County Durham, Tyne and Wear
C14: North West | D14: 0 | G14: Housing stock % in the following counties: Cheshire, Cumbria, Greater Manchester, Lancashire and Merseyside
C15: Wales | D15: 0
C16: Scotland | D16: 0
D17: =IF(SUM(D7:D16)=100%,"","Error - does not equal 100%") -> Error - does not equal 100%
A19: Age of lead tenant | C19: Under 18 | D19: 0 | G19: Age of lead tenant: meaning the tenant in regular occupation taking prime responsibility for the rental payment
C20: 18 - 70 | D20: 0
C21: Over 70 | D21: 0
D22: =IF(SUM(D19:D21)=100%,"","Error - does not equal 100%") -> Error - does not equal 100%
A24: Total construction spend in the last year (£m) | D24: 0 | E24: per annum | G24: Costs incurred during the last full financial year for the construction or total refurbishment (to bring it back into regular use) or properties for letting on social tenancies. This should be the total disclosed capital cost in the annual accounts
A26: Total maintenance spend in the last year (£m) | D26: 0 | E26: per annum | G26: Costs incurred during the last full financial year for the maintenance of properties for let on social tenancies. This should be the total disclosed capital cost in the annual accounts.
A28: % of tenants with additional support needs | D28: 0 | G28: Number of tenancies in which someone (lead tenant or otherwise) is regularly resident and receives additional support for physical, health, mental health or other social care needs which exceed those used by the majority of tenants, whether supplied by the landlord or another agency, divided by the total number of tenancies.
A30: % of tenants not on 5 year tenancies | D30: 0 | G30: The number of tenancies not let on five-year tenancies, including those that habitually are let for five or more years even if not contractually having an extended right to occupy, divided by the total number of tenancies.
A32: Date prepared | D32: =NOW() -> 2020-08-03T13:23:21.410

Sheet Reports (hidden)
C1: 2019-08-15T17:20:17.300 | H1: =IF((NOW()-C1)>120,"Assumptions entered over 1 year ago - consider update","") -> Assumptions entered over 1 year ago - consider update
A3: ="Value of a social tenancy for "&Inputs!$D$3 -> Value of a social tenancy for Name
B5: A social tenancy is so much more than a roof over someone’s head. The very nature of a social tenancy sets it apart from other housing types. Social landlords provide affordable, safe and secure tenancies in homes that meet the decent homes standard. As landlords they have a unique relationship with tenants, enabling responsible services and individual support to be woven into the tenancy itself. As the name suggests, social landlords also have an eye on good outcomes for communities and wider society. Everything they do helps to lay and maintain the foundations of a good, stable life for their tenants in community settings that are a pleasure to live in.
B6: =CONCATENATE("This report provides an illustration of the value brought by the social tenancies offered by ",Inputs!D3, ", presented as both a value per tenancy and a total value for ",Inputs!D3, ".") -> This report provides an illustration of the value brought by the social tenancies offered by Name, presented as both a value per tenancy and a total value for Name.
B7: These values are found by applying the core methodology developed by the team from Sonnet Advisory & Impact CIC working together with Hyde Housing Group. The original report, with detailed explanation of the methodology, its underlying assumptions and value hypotheses can be accessed here: https://www.hyde-housing.co.uk/value-to-society/
B8: The research underpinning the methodology revolves around the key assumption that in the absence of social housing, tenants would be left with three options – none of which is desirable over the long term – namely: staying with family or friends (including ‘sofa surfing’); staying in emergency or temporary accommodation arranged by the local authority; or struggling in the ‘bottom end’ of the Private Rented Sector. Admittedly, people can – and do – manage in these situations but the likelihood of them doing so over the long term is low. Social tenancies provide a necessary alternative, and one which provides far-reaching beneficial outcomes.
A10: Putting a price on value
B25: In arriving at a value for these outcomes, we have used the 5 Pillars of Wellbeing model, which explores five distinct areas of life (Financial wellbeing, Mental wellbeing, Physical wellbeing, Relational wellbeing, and Purpose) in order:
C26: • firstly, to see how life is different in a social tenancy compared to its alternatives; and
C27: • secondly, to explore how resulting cost savings, economic benefits or improved life chances accrue to beneficiaries
B28: =CONCATENATE("Based on the data which you have provided us for ",Inputs!D3, ", we estimate that the annual value of a social tenancy with ",Inputs!D3," is at least £",TEXT(Diagrams!V14,"#,###"),". When taking into consideration the effects of maintenance and building activity (including reflecting a designated proportion of wages being spent in the local economy) that value rises to £",TEXT(Diagrams!V20,"[red]#,###"),".") -> Based on the data which you have provided us for Name, we estimate that the annual value of a social tenancy with Name is at least £. When taking into consideration the effects of maintenance and building activity (including reflecting a designated proportion of wages being spent in the local economy) that value rises to £.
A61: ="Specific points relevant to "&Inputs!D3 -> Specific points relevant to Name
A74: About this report
A75: 1 | B75: This Social Housing Value Calculator generates a short illustrative report using data supplied by the user by applying key metrics derived from the Value of a Social Tenancy model to the inputs. The inputs used and contents of the report will not be verified or validated by Sonnet unless such support is specifically requested. Neither Sonnet Advisory & Impact CIC, Bates Wells as its predecessor, nor Hyde Group accept liability to the user or any third party who gains access to the report that is generated. This tool has been developed to provide an illustrative result based on summarised calculations: it is not prepared to a standard likely to be required for statutory reporting or applications to obtain grants or investment. The results should be treated as ‘estimated’ values only. Depending on the nuance of detailed organisational data, actual valuations may be more or less than the illustrative estimate provided by the Calculator.
A76: 2 | B76: In line with the above, the report you will receive may be freely quoted, but not relied upon in any form whatsoever related to formal accounting or reporting. For this reason, assurance or similar regulatory routines are not appropriate for this report.
A77: 3 | B77: If you would like to talk to us about the range of impact-related services we provide – including full impact studies, such as the one we performed for Hyde Housing – do please get in touch by emailing contact@sonnetimpact.co.uk.
A78: 4 | B78: Sonnet Advisory & Impact is actively supporting work across the social housing sector. As part of this we are committed to keeping our information and insight as fresh as possible. On receiving your report, you will be invited to submit a copy to us, so that we can add your data to our benchmarking activities. We would be very grateful if you would consider doing so – all data submitted in this way will be kept securely on our systems and anonymised in any publications or communications.
A80: About Sonnet Advisory & Impact
B81: Sonnet Advisory & Impact works co-productively with organisations committed to bringing about social good. We help them to identify their social impact footprint, to spot opportunities for expanding it, and to develop pragmatic impact measurement frameworks for integrated reporting. We specialise in conducting impact studies which evaluate, value and articulate social outcomes that organisations achieve through their work.
B82: www.sonnetimpact.co.uk
A87: Key inputs used
A89: The following information has been used as the basis for the illustration presented above.
A91: =CONCATENATE("Name of organisation: ",Inputs!$D$3) -> Name of organisation: Name
A93: =CONCATENATE("Number of tenancies: ",TEXT(Inputs!$D$5,"#,###")) -> Number of tenancies:
A95: Geographical mix
C97: =CONCATENATE(Inputs!C7,": ",TEXT(Inputs!D7,"0%")) -> London: 0%
C98: =CONCATENATE(Inputs!C8,": ",TEXT(Inputs!D8,"0%")) -> South East: 0%
C99: =CONCATENATE(Inputs!C9,": ",TEXT(Inputs!D9,"0%")) -> South West: 0%
C100: =CONCATENATE(Inputs!C10,": ",TEXT(Inputs!D10,"0%")) -> East of England: 0%
C101: =CONCATENATE(Inputs!C11,": ",TEXT(Inputs!D11,"0%")) -> Midlands: 0%
C102: =CONCATENATE(Inputs!C12,": ",TEXT(Inputs!D12,"0%")) -> Yorkshire and the Humber: 0%
C103: =CONCATENATE(Inputs!C13,": ",TEXT(Inputs!D13,"0%")) -> North East: 0%
C104: =CONCATENATE(Inputs!C14,": ",TEXT(Inputs!D14,"0%")) -> North West: 0%
C105: =CONCATENATE(Inputs!C15,": ",TEXT(Inputs!D15,"0%")) -> Wales : 0%
C106: =CONCATENATE(Inputs!C16,": ",TEXT(Inputs!D16,"0%")) -> Scotland: 0%
A109: Age mix
C111: =CONCATENATE(Inputs!C19,": ",TEXT(Inputs!D19,"0%")) -> Under 18: 0%
C112: =CONCATENATE(Inputs!C20,": ",TEXT(Inputs!D20,"0%")) -> 18 - 70: 0%
C113: =CONCATENATE(Inputs!C21,": ",TEXT(Inputs!D21,"0%")) -> Over 70: 0%
A116: Property costs
A117: =CONCATENATE("Annual construction spend (£m): ",TEXT(Inputs!$D$24,"#,###")) -> Annual construction spend (£m):
A118: =CONCATENATE("Annual maintenance spend (£m): ",TEXT(Inputs!$D$26,"#,###")) -> Annual maintenance spend (£m):
A120: Tenancy types and needs
A122: =CONCATENATE("Proportion of tenants not on 5 year agreements: ",TEXT(Inputs!$D$30,"#%")) -> Proportion of tenants not on 5 year agreements: %
A123: =CONCATENATE("Proportion of tenants with additional support needs: ",TEXT(Inputs!$D$28,"#%")) -> Proportion of tenants with additional support needs: %

Sheet Diagrams (hidden)
U6: Tenancies | W6: =Inputs!$D$5 -> 0
U7: Construction cost | W7: =SUM(Inputs!$D$24) -> 0
U8: Maintenance cost | W8: =SUM(Inputs!$D$26) -> 0
U10: Construction multiplier | W10: 1.88
U13: Org name | V13: Values | W13: Text box no. | X13: Text box content
U14: =Inputs!$D$3 -> Name | V14: =IFERROR(AD58/W6,"") ->  | W14: Text 1 | X14: =CONCATENATE("Social value per ",$U$14," tenancy £",TEXT($V$14,"#,###")," per annum") -> Social value per Name tenancy £ per annum
V15: =IFERROR(M44,"") -> 0 | W15: Text 2 | X15: =CONCATENATE("All ",$U$14," social homes £",TEXT(V15,"#,###"),"m per annum") -> All Name social homes £m per annum
V16: =IFERROR((V17*1000000)/$W$6,"") ->  | W16: Text 3 | X16: =CONCATENATE("Economic impact of construction £",TEXT($V$16,"#,###")," per tenancy") -> Economic impact of construction £ per tenancy
V17: =IFERROR($W$7*$W$10,"") -> 0 | W17: Text 4 | X17: =CONCATENATE("All ",$U$14," homes £",TEXT($V$17,"#,###"),"m in total") -> All Name homes £m in total
V18: =IFERROR((V19*1000000)/$W$6,"") ->  | W18: Text 5 | X18: =CONCATENATE("Economic impact of maintenance £",TEXT(V18,"#,###")," per tenancy") -> Economic impact of maintenance £ per tenancy
V19: =IFERROR($W$8*$W$10,"") -> 0 | W19: Text 6 | X19: =CONCATENATE("All ",U14," homes £",TEXT($V$19,"#,###"),"m in total") -> All Name homes £m in total
V20: =SUM(V14,V16,V18) -> 0 | W20: Text 7 | X20: =CONCATENATE("Total social value per ",$U$14," tenancy £",TEXT(V20,"#,###")) -> Total social value per Name tenancy £
V21: =V15+V17+V19 -> 0 | W21: Text 8 | X21: =CONCATENATE("All ",$U$14," homes £",TEXT(V21,"#,###"),"m") -> All Name homes £m
U28: No. of elderly tenancies | V28: =$W$6*Inputs!$D$21 -> 0
U29: Residential care saving per elderly tenancy | V29: 1059.259259
U30: Other LA costs per tenancy (all tenancies) | V30: 1162
U31: Total LA cost | V31: =(V28*(V29+V30))+((W6-V28)*V30) -> 0
U32: Saving per tenancy | V32: =V31/W6 -> 
U34: Savings per tenancy | V34: 1.739154211 | W34: 1.056799125 | X34: 0.8742617572 | Y34: 0.8165876777 | Z34: 0.7335399198 | AA34: 0.8590229676 | AB34: 0.718374043 | AC34: 0.9363835217
L35: Org Name | M35: Values | N35: Text box no. | O35: Text box content | V35: London | W35: South East | X35: South West | Y35: Midlands | Z35: North East | AA35: North West | AB35: Wales | AC35: Scotland
K36: =52000000/35915 -> 1447.86301 | L36: =$U$14 -> Name | M36: =IFERROR(AD50/1000000,"") ->  | N36: Text 9 | O36: =CONCATENATE("Local Authority £",TEXT($M$36,"#,##0.0"),"m") -> Local Authority £m | U36: Local Authority | V36: =$V$32 ->  | W36: =$V$32 -> 
K37: =55000000/35915 -> 1531.393568 | M37: =IFERROR(AD51/1000000,"") -> 0 | N37: Text 10 | O37: =CONCATENATE("Police & Justice £",TEXT($M$37,"#,##0.0"),"m") -> Police & Justice £0.0m | U37: Police and justice | V37: 1531 | W37: 1531 | X37: 1531 | Y37: 1531 | Z37: 1531 | AA37: 1531 | AB37: 1531 | AC37: 1531
K38: =10000000/35915 -> 278.4351942 | M38: 0 | N38: Text 11 | O38: =CONCATENATE("Education £",TEXT($M$38,"#,##0.0"),"m") -> Education £0.0m | U38: Education | V38: 278 | W38: 278 | X38: 278 | Y38: 278 | Z38: 278 | AA38: 278 | AB38: 278 | AC38: 278
K39: =93000000/35915 -> 2589.447306 | M39: 0 | N39: Text 12 | O39: =CONCATENATE("NHS £",TEXT($M$39,"#,##0.0"),"m") -> NHS £0.0m | U39: NHS | V39: 2589 | W39: 2589 | X39: 2589 | Y39: 2589 | Z39: 2589 | AA39: 2589 | AB39: 2589 | AC39: 2589
K40: =14000000/35915 -> 389.8092719 | M40: 0 | N40: Text 13 | O40: =CONCATENATE("DWP £",TEXT($M$40,"#,##0.0"),"m") -> DWP £0.0m | U40: DWP | V40: =$AD$40*V34 -> 678.2701422 | W40: =$AD$40*W34 -> 412.1516588 | X40: 340.9620853 | Y40: 318.4691943 | Z40: 286.0805687 | AA40: 335.0189573 | AB40: 280.1658768 | AC40: 365.1895735 | AD40: 390
K41: =172000000/35915 -> 4789.08534 | M41: 0 | N41: Text 14 | O41: =CONCATENATE("Economy £",TEXT($M$41,"#,##0.0"),"m") -> Economy £0.0m | U41: Economy | V41: =$AD$41*V34 -> 8328.809515 | W41: =$AD$41*W34 -> 5061.01101 | X41: 4186.839555 | Y41: 3910.638389 | Z41: 3512.922676 | AA41: 4113.860992 | AB41: 3440.293292 | AC41: 4484.340685 | AD41: 4789
K42: =2000000/35915 -> 55.68703884 | M42: 0 | N42: Text 15 | O42: =CONCATENATE("Fire Service £",TEXT($M$42,"#,##0.0"),"m") -> Fire Service £0.0m | U42: Fire Service | V42: 56 | W42: 56 | X42: 56 | Y42: 56 | Z42: 56 | AA42: 56 | AB42: 56 | AC42: 56
K43: =3000000/35915 -> 83.53055826 | M43: 0 | N43: Text 16 | O43: =CONCATENATE("Banks/ Creditors £",TEXT($M$43,"#,##0.0"),"m") -> Banks/ Creditors £0.0m | U43: Banks/creditors | V43: 84 | W43: 84 | X43: 84 | Y43: 84 | Z43: 84 | AA43: 84 | AB43: 84 | AC43: 84
K44: =SUM(K36:K43) -> 11165.25129 | L44: Total | M44: =SUM(M36:M43) -> 0 | N44: Text 17 | O44: =CONCATENATE("Total: £",TEXT($M$44,"#,##0.0"),"m value to stakeholders for ",$L$36,"’s ",TEXT($W$6,"#,###")," tenancies") -> Total: £0.0m value to stakeholders for Name’s tenancies
U45: Proportion of tenancies | V45: =Inputs!D7 -> 0 | W45: =Inputs!D8 -> 0 | X45: =Inputs!D9 -> 0 | Y45: =Inputs!D11 -> 0 | Z45: =Inputs!D13 -> 0 | AA45: =Inputs!D14 -> 0 | AB45: =Inputs!D15 -> 0 | AC45: =Inputs!D16 -> 0
U48: Total area savings
V49: London | W49: South East | X49: South West | Y49: Midlands | Z49: North East | AA49: North West | AB49: Wales | AC49: Scotland | AD49: Total
U50: Local Authority | V50: =$W$6*V$45*V36 ->  | W50: =$W$6*W$45*W36 ->  | AD50: =SUM(V50:AC50) -> 
U51: Police and justice | V51: =$W$6*V$45*V37 -> 0 | W51: 0 | X51: 0 | Y51: 0 | Z51: 0 | AA51: 0 | AB51: 0 | AC51: 0 | AD51: =SUM(V51:AC51) -> 0
U52: Education | V52: 0 | W52: 0 | X52: 0 | Y52: 0 | Z52: 0 | AA52: 0 | AB52: 0 | AC52: 0 | AD52: 0
U53: NHS | V53: 0 | W53: 0 | X53: 0 | Y53: 0 | Z53: 0 | AA53: 0 | AB53: 0 | AC53: 0 | AD53: 0
U54: DWP | V54: 0 | W54: 0 | X54: 0 | Y54: 0 | Z54: 0 | AA54: 0 | AB54: 0 | AC54: 0 | AD54: 0
U55: Economy | V55: 0 | W55: 0 | X55: 0 | Y55: 0 | Z55: 0 | AA55: 0 | AB55: 0 | AC55: 0 | AD55: 0
U56: Fire Service | V56: 0 | W56: 0 | X56: 0 | Y56: 0 | Z56: 0 | AA56: 0 | AB56: 0 | AC56: 0 | AD56: 0
U57: Banks/creditors | V57: 0 | W57: 0 | X57: 0 | Y57: 0 | Z57: 0 | AA57: 0 | AB57: 0 | AC57: 0 | AD57: 0
AD58: =SUM(AD50:AD57) -> 

Sheet Caveats (hidden)
A1: Disclaimer text
A3: Type | B3: The following issues relating to input data are noted for further review: | C3: Apply
A4: Geographic mix | B4: =CONCATENATE(Inputs!D3,"'s geographical footprint has an impact on several of the key calculations within our model. ",D4, Inputs!D3,"'s geographical presence reflects into its value estimate. More nuanced calculations are only possible with a detailed study.") -> Name's geographical footprint has an impact on several of the key calculations within our model. In a summary valuation like this it is not possible to reflect that footprint into all the elements of the model that are affected, hence the figures provided represent a broad illustration of how Name's geographical presence reflects into its value estimate. More nuanced calculations are only possible with a detailed study. | C4: =B20 -> True | D4: In a summary valuation like this it is not possible to reflect that footprint into all the elements of the model that are affected, hence the figures provided represent a broad illustration of how
A5: Age mix | B5: =CONCATENATE("The value estimate provided here is based on a typical distribution of resident age, family and employment profiles for a broad-based general social housing portfolio. If ",Inputs!D3," has a differing mix from this, particularly a high proportion of elderly tenants or a high proportion of children in tenancies, then this will influence the value. ",Inputs!D3,"'s value creation profile is likely to be more complex. A detailed analysis would be required to reveal an accurate picture.") -> The value estimate provided here is based on a typical distribution of resident age, family and employment profiles for a broad-based general social housing portfolio. If Name has a differing mix from this, particularly a high proportion of elderly tenants or a high proportion of children in tenancies, then this will influence the value. Name's value creation profile is likely to be more complex. A detailed analysis would be required to reveal an accurate picture. | C5: =B21 -> True
A6: Combined construction/maintenance spend | B6: =CONCATENATE("Our valuation approach assumes a certain amount of construction and maintenance spend each year, which results in both social value (in terms of employment) and wider economic value in the community."," That spend is expressed as a value per tenancy, averaged across the whole portfolio). If this is a year in which ",Inputs!D3,"'s construction or maintenance spend is particularly high, then there may be broader value issues which this model does not reflect.") -> Our valuation approach assumes a certain amount of construction and maintenance spend each year, which results in both social value (in terms of employment) and wider economic value in the community. That spend is expressed as a value per tenancy, averaged across the whole portfolio). If this is a year in which Name's construction or maintenance spend is particularly high, then there may be broader value issues which this model does not reflect. | C6: =B22 -> 
A7: Size | B7: The calculations shown here are based upon analysis of a Registered Provider with between 35,000 and 45,000 units. Providers with materially different numbers of units may require further detailed analysis. | C7: =B23 -> True
A8: Tenancy type | B8: We have built our valuation approach around the concept of safe, secure and stable tenancies, and the positive effects that these have on people’s lives. A central tenet of our working is an assumption that 5 year tenancy agreements are (or are becoming) the norm for most social landlords. The estimated valuation we have provided makes that assumption, but we note that your own proportion of tenancy agreements of this length is likely to differ to our starting assumption. This may have an effect on any subsequent detailed impact valuation. | C8: =B24 -> False
A9: Needs profile | B9: =CONCATENATE("The Social Housing Value Calculator is intended to reflect the intrinsic – and often unrecognised – value inherent in a social housing model.", " It is based on largely generalist housing provision, allowing for a proportion (but not a large proportion) of residents with additional support needs. Noting that ",Inputs!D3," is likely to have larger numbers of tenants with different or additional needs, a detailed impact study would reveal a more accurate value.") -> The Social Housing Value Calculator is intended to reflect the intrinsic – and often unrecognised – value inherent in a social housing model. It is based on largely generalist housing provision, allowing for a proportion (but not a large proportion) of residents with additional support needs. Noting that Name is likely to have larger numbers of tenants with different or additional needs, a detailed impact study would reveal a more accurate value. | C9: =B25 -> False
A20: Geog mix test | B20: =IF(+OR(Inputs!$D$7<40%,Inputs!$D$8>40%,Inputs!$D$9>40%,Inputs!$D$11>40%,Inputs!$D$13>40%,Inputs!$D$14>40%,Inputs!$D$15>40%,Inputs!$D$16>40%),"True","False") -> True
A21: Age mix test | B21: =IF(+OR(Inputs!$D$20<60%,Inputs!$D$21>40%,Inputs!$D$19>30%),"True","False") -> True
A22: Combined capital spend test | B22: =IF(+OR((((Inputs!D24*1000000)+(Inputs!D26*1000000))/Inputs!D5)>1900,(((Inputs!D24*1000000)+(Inputs!D26*1000000))/Inputs!D5)<1500),"True","False") -> 
A23: Size | B23: =IF(+OR(Inputs!$D$5<20000,Inputs!$D$5>50000),"True","False") -> True
A24: Tenancy type | B24: =IF(Inputs!$D$30>10%,"True","False") -> False
A25: Needs profile | B25: =IF(Inputs!$D$28>15%,"True","False") -> False
